{"text_format":"3","workbook":"xlsx","n_sheets":2,"sheets":["2-3 кл результаты","4-5 кл результаты"],"not_rendered":{"defined_names":2},"read":"whole","date_system":"1900"}

{"sheet":"2-3 кл результаты","index":0,"n_rows":41,"n_cols":13,"rows_kept":41,"merged":[[0,0,0,8]]}
["Экологическая олимпиада для младших школьников 2-3 классы"]
["№","Фамилия, имя","Класс","Класс","Тест","Практика 1","Практика 2","практика","ПК","Итого","итог места","итог по тесту","итог по практике"]
[1,"Хабипова Альмира Ильдаровна","МБОУ \n«Лицей № 4 г. Азнакаево»\nРеспублики Татарстан",3,55,9,10,{"$f":"(F3+G3)*2","v":38},10,{"$f":"+E3+H3+I3","v":103},1,2,3]
[2,"Гурьева Ирина ","МБОУ «СРЕДНЯЯ ОБЩЕОБРАЗОВАТЕЛЬНАЯ ШКОЛА №4» Чистополь",3,64,7,6,{"$f":"(F4+G4)*2","v":26},9,{"$f":"+E4+H4+I4","v":99},1,1,10]
[3,"Знаменская Мария","МБОУ \"СОШ№103\" г.Казань",2,46,10,9,{"$f":"(F5+G5)*2","v":38},10,{"$f":"+E5+H5+I5","v":94},2,6,3]
[4,"Сурыгин Артур ","МБОУ Гимназия №125,  ГДБЦ",2,43,10,10,{"$f":"(F6+G6)*2","v":40},9,{"$f":"+E6+H6+I6","v":92},2,9,1]
[5,"Шакиров Шаукат Ильсурович","МБОУ «Завод-Ныртинская СОШ им. И.С.Башкирова Сабинского МР РТ»",3,37,10,10,{"$f":"(F7+G7)*2","v":40},10,{"$f":"+E7+H7+I7","v":87},3,15,1]
[6,"Афанасьева Елизавета","МБОУ Татарская гимназия №14 имени Хади Атласи Бугульминского МР РТ, ",2,40,9,10,{"$f":"(F8+G8)*2","v":38},7,{"$f":"+E8+H8+I8","v":85},6,13,3]
[7,"Мадифурова Аделя","МАОУ СОШ №39 г.Казань",3,47,7,7,{"$f":"(F9+G9)*2","v":28},8,{"$f":"+E9+H9+I9","v":83},7,5,9]
[8,"Гилязова Амина","МАОУ «Школа №141»  ",3,52,6,4,{"$f":"(F10+G10)*2","v":20},10,{"$f":"+E10+H10+I10","v":82},8,3,15]
[9,"Хабибуллина Адэлия Фанисовна","МБОУ \"Средняя общеобразовательная школа №4\" г.Агрыз Агрызского муниципального района РТ",3,43,7,8,{"$f":"(F11+G11)*2","v":30},8,{"$f":"+E11+H11+I11","v":81},9,10,7]
[10,"Миндубаев Амир","МБОУ«Средняя общеобразовательная школа №86» Советского района г. Казани",2,49,4,5,{"$f":"(F12+G12)*2","v":18},10,{"$f":"+E12+H12+I12","v":77},10,4,18]
[11,"Галиев Данис Рамилевич","МБОУ «Зверосовхозская СОШ» Мамадышского МР РТ",2,30,10,9,{"$f":"(F13+G13)*2","v":38},8,{"$f":"+E13+H13+I13","v":76},11,19,3]
[12,"Исламгулова Эмилия","МБОУ «СОШ № 23» Городского дворца творчества детей и молодёжи №1  Набережные Челны ",3,43,9,6,{"$f":"(F14+G14)*2","v":30},2,{"$f":"+E14+H14+I14","v":75},12,8,7]
[13,"Валеуллов Адиль","МБОУ \"Арская гимназия №5\"",3,42,5,6,{"$f":"(F15+G15)*2","v":22},10,{"$f":"+E15+H15+I15","v":74},13,11,12]
[14,"Харитонова Александра","МБОУ«Апастовская средняя общеобразовательная школа",3,37,7,6,{"$f":"(F16+G16)*2","v":26},9,{"$f":"+E16+H16+I16","v":72},14,14,11]
[15,"Насыбуллин Дамир","МБОУ \"Гимназия №3\", г.Казань",3,44,5,3,{"$f":"(F17+G17)*2","v":16},9,{"$f":"+E17+H17+I17","v":69},15,7,21]
[16,"Юнусов Азат","МБОУ \"Лицей №159\", Советский район г.Казани",3,42,3,3,{"$f":"(F18+G18)*2","v":12},8,{"$f":"+E18+H18+I18","v":62},16,12,28]
[17,"Колесникова Амалия","МБОУ «Лесхозская средняя общеобразовательная школа»",2,31,4,5,{"$f":"(F19+G19)*2","v":18},9,{"$f":"+E19+H19+I19","v":58},17,18,19]
[18,"Хузеев Кирилл","МБОУ \"СОШ № 111\" ГДЭБЦ советский район г.Казань",3,30,3,8,{"$f":"(F20+G20)*2","v":22},3,{"$f":"+E20+H20+I20","v":55},18,20,13]
[19,"Валеев Марат Русланович","МБОУ «Гимназия № 40» Приволжский район г.Казань",2,27,4,6,{"$f":"(F21+G21)*2","v":20},8,{"$f":"+E21+H21+I21","v":55},19,24,16]
[20,"Павлова Злата","МБОУ «Тетюшская средняя общеобразовательная школа №2» Тетюшского муниципального района РТ",2,28,5,3,{"$f":"(F22+G22)*2","v":16},10,{"$f":"+E22+H22+I22","v":54},20,22,22]
[21,"Савельева Полина","МБОУ \"СОШ № 111\",  ГДЭБЦ Советский район г.Казань",3,33,3,4,{"$f":"(F23+G23)*2","v":14},6,{"$f":"+E23+H23+I23","v":53},21,16,24]
[22,"Юнисов Ислам","МБОУ«Гимназия №18»\n",3,33,3,4,{"$f":"(F24+G24)*2","v":14},6,{"$f":"+E24+H24+I24","v":53},22,17,25]
[23,"Ахметвалиев Азамат","МБОУ Лицей 110 Советского района г.Казани, ГДЭБЦ",3,28,3,3,{"$f":"(F25+G25)*2","v":12},10,{"$f":"+E25+H25+I25","v":50},23,21,29]
[24,"Гафурова Диляра Рамилевна","МБОУ«Апастовская средняя общеобразовательная школа ",2,21,5,5,{"$f":"(F26+G26)*2","v":20},4,{"$f":"+E26+H26+I26","v":45},25,29,17]
[25,"Аитов Минтимер","МАОУ \"Школа 39\" г.Казань",2,26,4,4,{"$f":"(F27+G27)*2","v":16},3,{"$f":"+E27+H27+I27","v":45},24,25,23]
[26,"Еремеев Николай","МБОУ  «Альшеевская средняя общеобразовательная школа Буинского муниципального района РТ»",2,16,2,7,{"$f":"(F28+G28)*2","v":18},10,{"$f":"+E28+H28+I28","v":44},26,31,20]
[27,"Миллер Николь","МБОУ «Школа №72» г.Казань",3,15,4,7,{"$f":"(F29+G29)*2","v":22},5,{"$f":"+E29+H29+I29","v":42},29,33,14]
[28,"Ахметгараев Айнур","МБОУ СОШ №2 г.Лениногорск ",2,24,3,2,{"$f":"(F30+G30)*2","v":10},8,{"$f":"+E30+H30+I30","v":42},27,27,31]
[29,"Лим Анна","МБОУ \"СОШ № 151\"",3,22,3,2,{"$f":"(F31+G31)*2","v":10},10,{"$f":"+E31+H31+I31","v":42},28,28,32]
[30,"Билалов Ранель ","МБОУ «Столбищенская СОШ им. Героя СССР А.П. Малышева» Лаишевского МР РТ",2,27,3,3,{"$f":"(F32+G32)*2","v":12},2,{"$f":"+E32+H32+I32","v":41},30,23,30]
[31,"Астраханцев Демид ","МАОУ «Средняя общеобразовательная школа №34 с углубленным изучением отдельных предметов» г. Набережные Челны",2,25,3,2,{"$f":"(F33+G33)*2","v":10},5,{"$f":"+E33+H33+I33","v":40},31,26,33]
[32,"Зиятдинов Ильшат ","МБОУ«Джалильская средняя общеобразовательная школа №2» \nСармановского муниципального района РТ",2,16,3,4,{"$f":"(F34+G34)*2","v":14},8,{"$f":"+E34+H34+I34","v":38},32,32,26]
[33,"Валиахметов Адель ","МАОУ «СОШ № 2» г. Нурлат",2,17,3,4,{"$f":"(F35+G35)*2","v":14},3,{"$f":"+E35+H35+I35","v":34},33,30,27]
[2,"Архипова Аиша","МБОУ «СОШ №5 » Нижнекамского МР РТ",3,{"$nulls":3},{"$f":"(F36+G36)*2","v":0},null,{"$f":"+E36+H36+I36","v":0},2]
[14,"Грошев Даниил","МБОУ \"СОШ №4\" г.Агрыз РТ",2,{"$nulls":3},0,null,0]
[21,"Кривоносов Иван","МБОУ \"Гимназия № 3\"",2,{"$nulls":3},0,null,0]
[26,"Миннуллина Аиша ","МБОУ «СОШ №30»  г. Набережные Челны",3,{"$nulls":3},0,null,0,26]
[28,"Никитин Евгений","МБОУ«Городищенская  СОШ им. кавалера орденов Славы трех степеней Г. Т. Семенова» Дрожжановского МР РТ",3,{"$nulls":3},0,null,0,28]
[31,"Султанова Алена","МБОУ \"СОШ №10 г.Лениногорск\"  ",3,{"$nulls":3},0,null,0]

{"sheet":"4-5 кл результаты","index":1,"n_rows":40,"n_cols":13,"rows_kept":40,"merged":[[0,0,0,8]]}
["Экологическая олимпиада для младших школьников 4-5 классы"]
[null,"Фамилия, имя","Класс, школа","Класс","тест","практика1","практика2","практика","ПК","итого","итог места","итог по тесту","итог по практике"]
[1,"Беляков Станислав","МБОУ «Лицей №83 – ЦО Приволжского района»,  Эко-центр ДОМ МБУ ДО «Городской детский эколого-биологический центр» ",5,47,10,10,{"$f":"(F3+G3)*2","v":40},7,{"$f":"E3+H3+I3","v":94},1,1,1]
[2,"Абдулова Алина  Рамилевна","МАОУ \"Лицей № 121\"(Ц О №178),.",5,46,9,10,38,9,93,1,3,3]
[3,"Ахметов Камиль","МБОУ «Лесхозская средняя общеобразовательная школа»\nАрского муниципального района РТ",5,40,9,10,38,10,88,2,7,3]
[4,"Хусаинова Карина","МАОУ \"Школа № 141\" , ГДЭБЦ Советский район г.Казань",4,47,6,8,28,10,85,2,1,16]
[5,"Харитонов Игорь","МБОУ  «Апастовская средняя  общеобразовательная \nшкола с углубленным изучением отдельных предметов» \n Апастовского муниципального района РТ",5,35,10,9,38,10,83,3,11,3]
[6,"Потапов Илья","МБОУ СОШ №15 г. Казани МБУ ДО «ГДЭБЦ» г. Казани",4,41,9,8,34,6,81,7,5,7]
[7,"Кадейкин Ринат","МАОУ \"Школа 39\" г.Казань ",4,32,10,10,40,9,81,6,15,1]
[8,"Цибяков Богдан","МАОУ «Гимназии №77» МАУДО «ДЭБЦ №4» Н.Челны",5,37,9,9,36,7,80,8,9,6]
[9,"Андреева Арина ","МБОУ «Гимназия №6»,",5,36,9,8,34,8,78,9,10,8]
[10,"Шаронова Вероника \n","МБОУ «СОШ № 174» Советского района г Казань\n",5,41,7,6,26,5,72,11,6,19]
[11,"Гарипов Айдар ","МБОУ «СОШ №3» г.Альметьевск",5,35,7,7,28,9,72,10,12,17]
[12,"Тумашева Вероника","МАОУ \"Прогимназия № 360\"",4,34,8,8,32,4,70,12,13,12]
[13,"Петров Матвей","МБОУ «Гимназия №26»\nгорода Набережные Челны",4,30,8,8,32,6,68,13,16,13]
[14,"Латыпова Сюмбель","МБОУ «Апастовская средняя общеобразовательная школа",5,34,6,6,24,8,66,14,14,22]
[15,"Мотигуллина Лейла","МБОУ «Гимназия №125» ГДБЦ, ",4,23,7,10,34,9,66,15,23,9]
[16,"Галимов  Муслим ","МБОУ «Лицей № 149, с татарским языком обучения», Советского района г. Казани  ",5,45,3,4,14,6,65,16,4,29]
[17,"Гайнуллина Полина  ","МБОУ «Гимназия №36» Авиастроительный район г.Казань",5,30,8,8,32,2,64,17,17,14]
[18,"Гареев Амир","МБОУ «Гимназия №179» Ново-Савиновский район 4 клас",4,28,7,8,30,5,63,18,19,15]
[19,"Хабибуллина Камилла","МБОУ Гимназия 18,",4,23,9,8,34,6,63,19,24,10]
[20,"Рэй Тарас","ЦВР Ново-Савиновского района МАОУ \"Школа №146\"",4,38,5,2,14,8,60,20,8,30]
[21,"Кокоркина Ксения","МБОУ Лицей №1 г.Чистополь",5,26,6,7,26,7,59,21,21,20]
[22,"Талипова Йолдыз","МБОУ \"Старо-Иштерякская ООШ\" Лениногорского муниципального района РТ,  ",5,28,6,5,22,8,58,22,20,24]
[23,"Шагиахметова Софья","МБОУ «Сюкеевская СОШ» Камско-Устьинского МР РТ",5,29,4,4,16,10,55,23,18,28]
[24,"Клюжев Александр ","МБОУ «СОШ № 11 ЗМР РТ»\nг. Зеленодольска\n",5,15,8,9,34,4,53,24,31,11]
[25,"Мияссаров Самир ","МБОУ «Старо-Уруссинская СОШ»",4,22,8,6,28,2,52,25,26,18]
[26,"Афлятунова Илина","МАОУ \"Нурлатская гимназия им.М.Е.Сергеева\"  г.Нурлат",5,16,8,4,24,10,50,26,30,23]
[27,"Распутин Ярослав","МБОУ «Гимназия №3 ЗМР РТ,",4,21,6,7,26,2,49,27,27,21]
[28,"Хафизов Нурислам","МБОУ «Старо-Уруссинская СОШ»\nЮтазинского МР РТ\n",5,24,5,5,20,4,48,28,22,26]
[29,"Зарифуллин Нурислам ","МБОУ «Лицей №12 г.Лениногорска» муниципального образования «Лениногорский муниципальный район» Республики Татарстан,",4,23,5,4,18,4,45,29,25,27]
[30,"Тухватуллин Рамазан","МБОУ \"Чувашско-Бродская СОШ\" Алькеевский МР РТ",4,21,3,8,22,2,45,30,28,25]
[31,"Хасанов Тимур","МБОУ \"Лицей №35- образовательный центр \"Галактика\" Приволжский район г.Казань",4,20,3,3,12,9,41,31,29,31]
[32,"Гарифуллин Галим","МБОУ «Среднекорсинская ООШ» Арского МР РТ",5,15,3,3,12,3,30,32,32,32]
[33,"Калялина Софья","МБОУ \"СОШ №15\" Зеленодольского МР РТ",5,{"$nulls":3},{"$f":"(F35+G35)*2","v":0},null,{"$f":"E35+H35+I35","v":0}]
[34,"Маткаримов Артур","МБОУ \"Сугушлинская ООШ\" МО \"ЛМР\" РТ",5,{"$nulls":3},0,null,0]
[35,"Салихова Гульнур ","МБОУ «Кавзияковская ООШ» Сармановского МР РТ,",5,{"$nulls":3},0,null,0]
[36,"Хисматуллина Гульназ Рифатовна","МБОУ «Казанбашская ООШ» Арского МР РТ с.Казанбаш",5,{"$nulls":3},0,null,0]
[37,"Шакирова Ляйсан ","МБОУ «СОШ с. Урманаево» Азнакаевского района, РТ.",4,{"$nulls":3},0,null,0]
[38,"Шипунова Анастасия","МБОУ «Средняя общеобразовательная школа №7» МО \"Лениногорский МР\" РТ",5,{"$nulls":3},0,null,0]